Cogmind - Beta 15 @@@ ROGUE MODE // 2025.07.21 @ 18:07:45 Player: Skysub Result: Destroyed by L-41 Fighter with Axe Performance ------------- Evolutions (0) 0 Regions Visited (3) 600 Robots Destroyed (35) 175 Value Destroyed (684) 684 Prototype IDs (11) 220 Alien Tech Used (0) 0 Bonus (0) 0 TOTAL SCORE: 1679 Bonus ------- None Cogmind --------- Core Integrity 0/250 Matter 250/300 Energy 290/290 System Corruption 0% Temperature Cool (4) Movement Rolling (190) Ox6 Location -7/Recycling Parts ------- > --- POWER (1) -------- Improved Deuterium Engine > --- PROPULSION (2) --- Light Treads Compact Wheel > --- UTILITY (2) ------ Huge Storage Unit > --- WEAPON (2) ------- Flak Gun Hypervelocity Gauss Rifle > --- INVENTORY (25) --- Subdweller Monowheel Subdweller Monowheel Improved Heat Sink Small Storage Unit High-capacity Storage Unit Structural Scanner Subdweller Optics Subdweller Optics Subdweller Optics Improved Sensor Array Improved Signal Interpreter Core Analyzer Hacking Suite High-powered Tractor Beam Rainbow Chip Small Laser Particle Gun Subdweller Laser Subdweller Machine Gun Grenade Launcher Grenade Launcher Improved Datajack Mining Laser Hammer Peak State ------------ > --- POWER ------------ Improved Deuterium Engine > --- PROPULSION ------- Light Treads Compact Wheel > --- UTILITY ---------- Huge Storage Unit Improved Light Armor Plating > --- WEAPON ----------- Flak Gun Hypervelocity Gauss Rifle > --- INVENTORY -------- Subdweller Monowheel Subdweller Monowheel Improved Heat Sink Small Storage Unit High-capacity Storage Unit Structural Scanner Subdweller Optics Subdweller Optics Subdweller Optics Improved Sensor Array Improved Signal Interpreter Core Analyzer Medium Reflective Plating Hacking Suite High-powered Tractor Beam Rainbow Chip Small Laser Particle Gun Subdweller Laser Subdweller Machine Gun Grenade Launcher Grenade Launcher Improved Datajack Mining Laser Hammer [Rating: 25] Favorites ----------- Power Light Ion Engine Engine Light Ion Engine Power Core Light Nuclear Core Propulsion Light Treads Treads Light Treads Wheel Wheel Utility Huge Storage Unit Device Structural Scanner Storage Huge Storage Unit Protection Improved Light Armor Plating Weapon Small Laser Energy Gun Small Laser Ballistic Gun Flak Gun Launcher Grenade Launcher Impact Weapon Hammer Special Melee Weapon Improved Datajack Build | -11 -10 -10 -7 ------- Run | Yrd Mat Sub Rec Slots Evolved . | . . . . Power . | . . . . Propulsion . | . . . . Utility . | . . . . Weapon . | . . . . Parts Attached 29 | 6 7 6 10 Power 4 | 1 1 . 2 Engine 3 | 1 . . 2 Core 1 | . 1 . . Reactor . | . . . . Propulsion 8 | 2 2 2 2 Treads 3 | 2 . 1 . Leg . | . . . . Wheel 5 | . 2 1 2 Hover . | . . . . Flight . | . . . . Utility 6 | 1 2 1 2 Device 1 | . . 1 . Storage 3 | 1 2 . . Processor . | . . . . Hackware . | . . . . Protection 2 | . . . 2 Artifact . | . . . . Weapon 11 | 2 2 3 4 Energy Gun 2 | . 2 . . Energy Cannon . | . . . . Ballistic Gun 5 | 2 . . 3 Ballistic Cannon . | . . . . Launcher 2 | . . 2 . Special Weapon . | . . . . Impact Weapon 1 | . . 1 . Slashing Weapon . | . . . . Piercing Weapon . | . . . . Special Melee Weapon 1 | . . . 1 Unidentified Prototypes . | . . . . Parts Lost 8 | . 4 3 1 Power 3 | . 1 1 1 Propulsion 3 | . 1 2 . Utility . | . . . . Weapon 2 | . 2 . . Highest Loss Streak 3 | . 3 3 1 To Critical Strikes . | . . . . Average Backups 13 | 3 8 10 23 Power 1 | . 1 1 . Propulsion 2 | 1 2 2 2 Utility 5 | . 1 3 12 Weapon 4 | . 3 4 7 Tool/Special . | . . . . Unused Backups 13 | . . . 13 Power . | . . . . Propulsion . | . . . . Utility 11 | . . . 11 Weapon 2 | . . . 2 Tool/Special . | . . . . Average Slot Usage (%) 90 | . 84 97 93 Engine 7 | . 12 . 7 Core 3 | . 1 12 . Treads 15 | . 16 13 14 Wheel 12 | . 11 14 13 Device 3 | . . 14 . Storage 14 | . 14 14 14 Protection 5 | . . . 13 Energy Gun 11 | . 19 15 . Ballistic Gun 13 | . 8 . 26 Launcher 1 | . . 6 . Impact Weapon 1 | . . 5 . Peak Build Rating 25 | 6 10 12 25 Average Rating 12 | 5 7 10 19 On Entrance 6 | . 6 10 10 Naked Turns . | . . . . Heaviest Build 101 | 11 89 90 101 Greatest Support 40 | 40 40 20 40 Greatest Overweight (x) 8 | . 8 8 6 Average Overweight (x) 4 | . 4 7 4 Largest Inventory Capacity 25 | 8 25 25 25 Average Capacity 21 | 7 19 25 25 Most Carried 25 | 5 11 15 25 Average Carried 13 | 3 8 10 23 Final Capacity 25 | 8 25 25 25 Final Carried 24 | 5 10 15 24 Class Distribution -------------------- 93% | Mutant 6% | Scavenger-Mutant Dominant Class ---------------- Mutant | -10/Materials Mutant | -10/Subcaves Mutant | -7/Recycling Resources | -11 -10 -10 -7 ----------- Run | Yrd Mat Sub Rec Matter Collected 917 | 376 212 75 254 Remotely . | . . . . Salvage Created 1246 | 302 418 133 393 Parts 67 | 26 27 4 10 Haulers Intercepted . | . . . . Recyclers Shooed 4 | 1 2 . 1 Parts Field Recycled . | . . . . Retrieved Matter . | . . . . Parts Self-Destructed . | . . . . Prevented . | . . . . Kills | -11 -10 -10 -7 ------- Run | Yrd Mat Sub Rec Combat Hostiles Destroyed 13 | . 7 4 2 Melee 1 | . . 1 . Guns 9 | . 7 . 2 AOE 3 | . . 3 . Classes Destroyed 8 | 3 3 1 1 Worker 6 | 3 3 . . Builder 1 | . 1 . . Tunneler 8 | 8 . . . Recycler 6 | 1 . . 5 Watcher 1 | . 1 . . Grunt 7 | . 7 . . Sentry 2 | . . . 2 Subdweller 4 | . . 4 . Best Kill Streak 5 | 5 4 2 5 Combat Bots Only 2 | . 2 2 1 Max Kills in Single Turn 2 | 2 1 1 1 Gunslinging . | . . . . Exploded 1 | . . 1 . Melee 1 | . . 1 . Uniques/NPCs Destroyed . | . . . . Combat | -11 -10 -10 -7 -------- Run | Yrd Mat Sub Rec Hostile Shots Fired 126 | . 54 14 58 Missed 41 | . 17 5 19 Hits 85 | . 37 9 39 Melee 4 | . . . 4 Projectile 81 | . 37 9 35 AOE 2 | . . 2 . Critical Strikes 2 | . . . 2 Damage Taken 1198 | . 544 237 417 Core 266 | . 133 40 93 Absorbed by Shields . | . . . . Core Remaining (%) 100 | 100 . . . Volleys Fired 121 | 29 67 4 21 Largest 2 | 2 2 2 2 Hottest 105 | 40 105 70 70 Shots Fired 228 | 58 120 8 42 Gun 224 | 58 120 4 42 Cannon . | . . . . Launcher 4 | . . 4 . Special . | . . . . Kinetic 171 | 58 73 . 40 Thermal 53 | . 47 4 2 Explosive 4 | . . 4 . Electromagnetic . | . . . . Robot Hit Streak 10 | 10 9 5 10 Robot Miss Streak 8 | 6 6 1 8 Penetration Max 1 | . . . 1 Secondary Targets . | . . . . Shots Hit Robots 150 | 34 71 9 36 Core Hits 79 | 18 25 7 29 Critical Kills 2 | 1 . . 1 Critical Parts Destroyed 1 | . . . 1 Critical Strikes 3 | 1 . . 2 Destroy 3 | 1 . . 2 Melee Attacks 15 | . . 13 2 Impact 13 | . . 13 . Slashing . | . . . . Piercing . | . . . . Sneak Attacks 2 | . . . 2 Combat Hostiles . | . . . . Follow-up Attacks . | . . . . Damage Inflicted 2163 | 400 811 299 653 Guns 1888 | 400 811 24 653 Cannons . | . . . . Explosions 186 | . . 186 . Melee 88 | . . 88 . Ramming 1 | . . 1 . Kinetic 1526 | 400 495 . 631 Thermal 362 | . 316 24 22 Explosive 186 | . . 186 . Electromagnetic . | . . . . Impact 88 | . . 88 . Slashing . | . . . . Piercing . | . . . . Highest Corruption . | . . . . Average Corruption . | . . . . Corruption Purged . | . . . . Corruption Blocked . | . . . . Overload Shots . | . . . . Overflow Damage 8 | . . 8 . Projectiles . | . . . . Explosions . | . . . . Melee 8 | . . 8 . Knockbacks . | . . . . Impact . | . . . . Kinetic . | . . . . Secondary . | . . . . Self-Inflicted Damage . | . . . . Shots . | . . . . Rammed 1 | . . 1 . Targets Rammed 1 | . . 1 . Kicked . | . . . . Crushed . | . . . . Highest Temperature 360 | . 360 . 59 Average Temperature 69 | . 81 . 24 Received Heat Transfer 414 | . 294 30 90 Effects 1 | . 1 . . Energy Bleed 1 | . 1 . . Siege Activations . | . . . . Martial Activations . | . . . . Shielding Activations . | . . . . Robots Disrupted . | . . . . Combat Hostiles . | . . . . Robots Corrupted . | . . . . Combat Hostiles . | . . . . Parts Fried . | . . . . Impact Corruptions 1 | . . 1 . Robots Melted . | . . . . Combat Hostiles . | . . . . Parts Melted 2 | . 2 . . Heat Transferred 809 | . 709 50 50 Parts Sabotaged . | . . . . Parts Stolen . | . . . . Parts Stripped . | . . . . Power Chain Reactions . | . . . . Alert | -11 -10 -10 -7 ------- Run | Yrd Mat Sub Rec Maximum Alert Level . | . . . . Low Security (%) 100 | 100 100 . 100 Level 1 . | . . . . Level 2 . | . . . . Level 3 . | . . . . Level 4 . | . . . . Level 5 . | . . . . High Security . | . . . . Max Security . | . . . . Peak Influence 97 | 15 97 . 43 Initial 14 | . . . 14 Average 11 | 2 21 . 4 Influence Increases 487 | 60 293 30 104 Destroy 0b10 Robot/C 180 | . 140 . 40 Destroy 0b10 Robot/NC 110 | 60 25 . 25 Destroy Leader 42 | . 42 . . Successful Hack 20 | . 11 . 9 Select Force Hacks 30 | . 30 . . Disable Machine 30 | . . . 30 Lose Combat Pursuer 75 | . 45 30 . Influence Decreases 487 | 60 245 48 134 Entered New Map 40 | . . 24 16 Time Decay 407 | 60 205 24 118 Lost Part 40 | . 40 . . Squads Dispatched 1 | . 1 . . Investigation 1 | . 1 . . Extermination . | . . . . Reinforcement . | . . . . Assault . | . . . . Garrison . | . . . . Intercept . | . . . . Searches Triggered . | . . . . Construction Impeded . | . . . . Haulers Reinforced . | . . . . Active Scanning Responses . | . . . . Cargo Convoy Interrupts . | . . . . Stealth | -11 -10 -10 -7 --------- Run | Yrd Mat Sub Rec Distress Signals 1 | . 1 . . Communications Jammed . | . . . . Distress Signals . | . . . . Times Spotted 28 | . 15 9 4 Peak Tracking Total 6 | . 4 6 2 Tactical Retreats 3 | . 2 1 . Traps | -11 -10 -10 -7 ------- Run | Yrd Mat Sub Rec Traps Triggered 2 | . 2 . . Indirectly . | . . . . Trap Hack Attempts . | . . . . Triggered . | . . . . Disarmed . | . . . . Reprogrammed . | . . . . Reused . | . . . . Traps Extracted . | . . . . Installed . | . . . . Triggered . | . . . . Machines | -11 -10 -10 -7 ---------- Run | Yrd Mat Sub Rec Machines Disabled 3 | . . 1 2 Max in Single Turn 1 | . . 1 1 Machines Repaired . | . . . . Machines Dismantled . | . . . . Machines Sabotaged . | . . . . Overloaded Fab Kills . | . . . . Hacking | -11 -10 -10 -7 --------- Run | Yrd Mat Sub Rec Machines Accessed 15 | . 8 2 5 Terminals 10 | . 6 . 4 Fabricators . | . . . . Repair Stations . | . . . . Recycling Units 3 | . 2 . 1 Scanalyzers . | . . . . Garrison Access . | . . . . Total Hacks 42 | . 26 5 11 Successful 24 | . 14 5 5 Failed 18 | . 12 . 6 Catastrophic 2 | . . . 2 Database Lockouts . | . . . . Manual 26 | . 18 . 8 Terminals 27 | . 19 . 8 Fabricators . | . . . . Repair Stations . | . . . . Recycling Units 10 | . 7 . 3 Scanalyzers . | . . . . Garrison Access . | . . . . Terminal Hacks 8 | . 3 5 . Record 4 | . . 4 . Terminal Index 1 | . 1 . . Zone Layout 2 | . 2 . . Proto ID Catalog 1 | . . 1 . Fabricator Hacks . | . . . . Repair Station Hacks . | . . . . Recycling Unit Hacks 4 | . 2 . 2 Report Inventory 3 | . 2 . 1 Retrieve Components 1 | . . . 1 Scanalyzer . | . . . . Garrison Access Hacks . | . . . . Unauthorized Hacks 12 | . 9 . 3 Terminals 11 | . 8 . 3 Botnet 3 | . 2 . 1 Skim 8 | . 6 . 2 Fabricators . | . . . . Repair Stations . | . . . . Recycling Units 1 | . 1 . . Tunnel 1 | . 1 . . Scanalyzers . | . . . . Garrison Access . | . . . . Data Cores Recovered . | . . . . Used . | . . . . Hacking Detections 12 | . 7 . 5 Full Trace Events 2 | . 1 . 1 Feedback Events . | . . . . Feedback Blocked . | . . . . Robot Schematics Acquired . | . . . . Robots Built . | . . . . Authchips . | . . . . Time . | . . . . Total Robot Build Rating . | . . . . Part Schematics Acquired . | . . . . Parts Built . | . . . . Authchips . | . . . . Time . | . . . . Total Part Build Rating . | . . . . Parts Repaired . | . . . . Time . | . . . . Parts Recycled . | . . . . Recycled Matter . | . . . . Retrieved Matter . | . . . . Retrieved Components 3 | . . . 3 Parts Scanalyzed . | . . . . Part Schematics Acquired . | . . . . Parts Damaged . | . . . . Bothacking | -11 -10 -10 -7 ------------ Run | Yrd Mat Sub Rec Used RIF Installer . | . . . . Robots Hacked 1 | . . . 1 Non-combat 1 | . . . 1 Combat . | . . . . Robot Hacks Applied 1 | . . . 1 find_recycling 1 | . . . 1 Relay Couplers Released . | . . . . Fabnet Peak Effective % . | . . . . Robots Rewired 1 | . . . 1 Allies Hacked . | . . . . Hacks Repelled . | . . . . Allies | -11 -10 -10 -7 -------- Run | Yrd Mat Sub Rec Total Allies 1 | . . . 1 Largest Group 1 | . . . 1 Highest-Rated Group 13 | . . . 13 Highest-Rated Ally 13 | . . . 13 Total Orders . | . . . . Ally Attacks 2 | . . . 2 Total Damage 26 | . . . 26 Kills . | . . . . Allies Corrupted . | . . . . Allies Melted . | . . . . Intel | -11 -10 -10 -7 ------- Run | Yrd Mat Sub Rec Active Infowar (turns) 751 | . . 711 40 Structural 751 | . . 711 40 Robot Analysis Total . | . . . . Derelict Logs Recovered . | . . . . Drone Launches . | . . . . Drone Recoveries . | . . . . Exploration | -11 -10 -10 -7 ------------- Run | Yrd Mat Sub Rec Turns Passed 3589 | 362 1232 711 1284 Spaces Moved 1797 | 129 611 329 728 Core 2 | 2 . . . Treads 274 | 127 130 . 17 Legs . | . . . . Wheels 1521 | . 481 329 711 Hover . | . . . . Flight . | . . . . Fastest Speed 50 | 50 130 150 150 Average Speed 168 | 158 165 194 162 Slowest Speed 320 | 160 200 200 320 Overloaded Moves . | . . . . Propulsion Burnouts . | . . . . Robots Hopped . | . . . . Potential Cave-ins . | . . . . Cave-ins Triggered . | . . . . Exploration Rate (%) 54 | 8 89 22 99 Regions Visited 3 Branch Regions 2 Pre-discovered Areas 4 | . 3 1 . Known Exits Taken 2 | . 1 1 . Unknown Exits Taken 1 | 1 . . . Scrap Searched 3 | . . 3 . Spaces Dug 2 | . . 2 . Terrain Destroyed 18 | . . 18 . Melee 2 | . . 2 . Projectile . | . . . . AOE 16 | . . 16 . Terrain Rammed . | . . . . Walls Destroyed . | . . . . Machines Disabled . | . . . . Actions | -11 -10 -10 -7 --------- Run | Yrd Mat Sub Rec Total 2104 | 232 720 367 785 Wait 102 | 64 25 4 9 Move 1795 | 128 610 329 728 Hop . | . . . . Pick Up 33 | 5 7 8 13 Fast Attach 10 | 6 4 . . Attach 10 | . 4 3 3 Detach 2 | . 2 . . Swap 15 | . 1 6 8 Drop 1 | . . . 1 Fire 121 | 29 67 4 21 Melee 15 | . . 13 2 Ram . | . . . . Kick . | . . . . Crush . | . . . . Escape Stasis . | . . . . Rewire . | . . . . Trap . | . . . . Miscellaneous . | . . . . Route ------- -11/Scrapyard -10/Materials (discovered 5 exits: *Mat x3 / [*Min] / *Sub) -10/Subcaves (discovered 3 exits: Mat x2 / *Rec) -7/Recycling (discovered 2 exits: [*Fac] / [*Scr]) History --------- Turn | Location | Event 39 | -11/Scrapyard | Discovered new exit (range 16) 363 | -11/Scrapyard | Entered Materials 364 | -10/Materials | Build established: Mutant 466 | -10/Materials | Discovered new exit (range 14) 744 | -10/Materials | Lost 3 parts (1n2w) 854 | -10/Materials | Discovered new exit (range 16) 1005 | -10/Materials | Learned location of Recycling (-7) 1041 | -10/Materials | Identified exit to Materials 1055 | -10/Materials | Discovered exit to Materials (range 15) 1065 | -10/Materials | Loaded intel: 42 machine locations 1078 | -10/Materials | Learned location of 2 exits from Subcaves 1082 | -10/Materials | Learned Storage emergency access door positions 1107 | -10/Materials | Learned location of 2 exits from Subcaves 1135 | -10/Materials | Learned Storage stockpile data 1175 | -10/Materials | Identified exit to Subcaves 1175 | -10/Materials | Learned location of 1 exit from Materials 1485 | -10/Materials | Core integrity fell below 50% 1595 | -10/Materials | Entered Subcaves 1596 | -10/Subcaves | Identified exit to Recycling 1596 | -10/Subcaves | Identified exit to Materials 1696 | -10/Subcaves | Visited 4L-MR0's lab 1719 | -10/Subcaves | Found Rainbow Chip 1794 | -10/Subcaves | Visited Clippyterm 1800 | -10/Subcaves | Learned location of Extension (-6) 2181 | -10/Subcaves | Disturbed a concealed Subdweller 2244 | -10/Subcaves | Lost 3 parts (1p2n) 2306 | -10/Subcaves | Entered Recycling 2802 | -7/Recycling | Core integrity fell below 20% 2849 | -7/Recycling | Discovered new exit (range 16) 3023 | -7/Recycling | Scanned before Scraplab entrance 3046 | -7/Recycling | Entered Scraplab 3062 | -7/Recycling | Discovered new exit (range 3) 3590 | -7/Recycling | Destroyed by L-41 Fighter with Axe Last Messages --------------- 03413_ Acquired 47 matter. 03493_ Sneak attack on R-06 Scavenger. 03493_ Jacked R-06 Scavenger... >>find_recycling Pinpointed nearest Recycling Unit: (6,57) (already known). 03571_ L-41 Fighter springs to life. 03575_ Sneak attack on G-47 Trooper. 03575_ G-47 Trooper rewired. 03576_ L-41 Fighter springs to life. 03580_ Trooper 4a destroyed. 03584_ HV Slug penetrates L-41 Fighter. 03584_ D-53 Grenadier suffers critical hit (Destroy). 03584_ Destroyed Lgt. Deuterium Engine. 03586_ Imp. Light Armor Plating severed. 03588_ R-06 Scavenger collects Particle Gun. 03588_ HV Slug penetrates L-41 Fighter. 03588_ HV Slug penetrates D-53 Grenadier. 03588_ Med. Reflective Plating severed. Map ----- +----------------------------------------------------+ | #??????????????????????????????????????????? | | #??????????????????????????????????????????? | | #?#########????????????????????????????????? | | ##+####?#]]]#!!!#????????????????????????????????? | | ?# ######]] #!!!###??????????????????????????????? | | ?# #####################??????????? | | ?# #??????????? | | ?# %########## ## ########???? | | ?###################+#?########/## #???? | | ????????# """ #?# [ + #???? | | ????????# "T" #?# ] ! # ####? | | ????????# #?# % [ # """" #? | | ????????# """ #?# %+ """" #? | | ????????#""""" #?#! # """" ## | | ????????#""""" #?# /]# | | ????????#""""" #?# # | | ????????# """ #?# ? # """" | | ????????# #?####?###### """" | | ????????# #???????????# """" | | ????????# % #???????????# | | ????????# #???????????# | | #######?#####+###+####???????????###"" ""### | | !!#????# #???###########""T""#?# | | ! #????# #???# = ] # """ #?# | | #????# ""% #####b ]i #########+##+## | | ! #????# """ !@! h! #??# | | !!!#????# """" #####lr ! ]= a#??# """"" | | ! #????# """" #???# d u#??# ""T"" | | !! #????# """" #???# g !#??# | | ??????# "" #???# h i #??############ | | ????????# #???# ]g #?????????????? | | +########### #########+##+################ | | | | ##### | | " " """ """ """ """ #???? | | ###+############ """ """ """ """ """ ##### | | !#???# """ """ """ """ """ | | / % #???# #### | | #???# #??? | | #??##########+#################### #??? | | [ #?## #????????????# #??? | | ! %#?# #?############+#### | | ! % #?## #?# | | ############?# #?# | | ?????????????## #?# | | ####??????????# #?# | | ! #??????????# #?# | | ! #??????????# #?# | | #??????????# #?# | | *#??????????#+##+###/#########?# | +----------------------------------------------------+ Best States ------------- Heat Dissipation 25 Energy Generation 16 Energy Capacity 290 Matter Stores 300 Matter Capacity 300 Sight Range 16 Terrain Scan Density 10 Armor Coverage 150 Evasion (%) 40 Recoil Reduction 2 Item Schematics ----------------- None Robot Schematics ------------------ None Fabricated ------------ Nothing Repaired ---------- Nothing Alien Tech Used ----------------- None Achievements -------------- None Challenges ------------ None Game ------ Seed BombHackingFlightbrick Manual? 0 Play Time 00:18:30 Cumulative 167.6 hours Start 2025.07.21 @ 17:50:14 End 2025.07.21 @ 18:07:45 Sessions 1 Manual Loads 0 Difficulty Rogue Special Mode None Game No. 192 Rogue 192 Adventurer 0 Explorer 0 Win Type - Total 3 Types 1/0/0/1/0/0/0/0/0/1 Lore% 67 Gallery% 62 Achievement% 55 Wizard Run 0 Options --------- Layout 1 ASCII 0 Keyboard 1 Movement Arrows Keybinds 0 Fullscreen 1 Font 36/Smallcaps Map View 50x40 Zoom Use 0% Tactical HUD 1 Map Filters NONE Filters NONE Steam 1 RUN: 60701255-0d32-4d74-8042-a1ba4f0e9638